bitfinex-derivatives/quotes_SOLF0:USTF0_20260310
["timestamp","ask_amount","ask_price","bid_price","bid_amount"]
[1773180240902,3.48894858,85.69,85.649,17.39209534]
[1773180241199,3.48894858,85.67,85.631,17.39209534]
[1773180241797,0.5832128,85.743,85.611,17.39209534]
[1773180241798,3.48894858,85.66,85.611,17.39209534]
[1773180242301,3.48894858,85.66,85.624,17.39209534]
[1773180242503,17.43117468,85.667,85.624,17.39209534]
[1773180242696,3.48894858,85.67,85.624,17.39209534]
[1773180243497,3.48894858,85.67,85.631,10.509]
[1773180244399,3.48894858,85.66,85.624,17.39209534]
[1773180244605,3.48894858,85.65,85.622,10.51]
[1773180244800,17.43117468,85.66,85.61,17.39209534]
[1773180245010,3.48894858,85.66,85.61,20.88104392]
[1773180245709,3.48894858,85.66,85.628,10.509]
[1773180246809,3.48894858,85.65,85.621,10.51]
[1773180249005,17.43117468,85.663,85.621,10.51]
[1773180249006,3.48894858,85.66,85.621,10.51]
[1773180249608,3.48894858,85.66,85.587,21.03]
[1773180249609,3.48894858,85.67,85.629,17.39209534]
[1773180249906,3.48894858,85.67,85.559,21.70462788]
[1773180249907,20.92012326,85.68,85.631,17.39209534]
[1773180250107,3.48894858,85.67,85.581,21.70462788]
[1773180250306,20.92012326,85.66,85.611,17.39209534]
[1773180250707,20.92012326,85.66,85.624,10.51]
[1773180254308,3.48894858,85.65,85.624,10.51]
[1773180256117,1.0,85.705,85.626,17.39209534]
[1773180256118,3.48894858,85.68,85.626,17.39209534]
[1773180257113,3.48894858,85.68,85.644,17.39209534]
[1773180257325,20.92012326,85.69,85.644,17.39209534]
[1773180257917,3.48894858,85.69,85.655,10.506]
[1773180259718,3.48894858,85.7,85.661,10.505]
[1773180259919,3.48894858,85.7,85.661,18.41029144]
[1773180261328,3.48894858,85.7,85.668,10.505]
[1773180261920,3.48894858,85.69,85.654,10.506]
[1773180262113,3.48894858,85.68,85.654,10.506]
[1773180264327,3.48894858,85.69,85.654,10.506]
[1773180265924,3.48894858,85.69,85.661,10.505]
[1773180267124,18.49463583,85.699,85.669,10.505]
[1773180267329,3.48894858,85.72,85.669,18.41029144]
[1773180268418,3.48894858,85.72,85.681,10.503]
[1773180271418,3.48894858,85.7,85.656,18.41029144]
[1773180272531,18.49463583,85.709,85.661,18.41029144]
[1773180273425,18.49463583,85.709,85.674,10.504]
[1773180274928,3.48894858,85.68,85.606,18.41029144]
[1773180275134,3.48894858,85.65,85.606,18.41029144]
[1773180275429,3.48894858,85.67,85.621,18.41029144]
[1773180276434,3.48894858,85.67,85.629,10.509]
[1773180279236,18.49463583,85.679,85.634,18.41029144]
[1773180280136,18.49463583,85.679,85.636,18.41029144]
[1773180281634,3.48894858,85.65,85.553,21.70462788]
[1773180281840,3.48894858,85.58,85.547,18.41029144]
[1773180282036,18.49463583,85.645,85.547,18.41029144]
[1773180282037,18.49463583,85.605,85.547,18.41029144]
[1773180282338,3.48894858,85.6,85.55,18.41029144]
[1773180282535,3.48894858,85.57,85.518,18.41029144]
[1773180282735,3.48894858,85.57,85.521,18.41029144]
[1773180283236,18.49463583,85.591,85.541,18.41029144]
[1773180283842,18.49463583,85.591,85.51,9.36201284]
[1773180283843,18.49463583,85.606,85.543,18.41029144]
[1773180285438,18.49463583,85.606,85.549,10.519]
[1773180287441,18.49463583,85.606,85.55,18.71296821]
[1773180287936,18.63455834,85.619,85.553,18.71296821]
[1773180289345,18.63455834,85.619,85.56,10.518]
[1773180291340,17.54158793,85.617,85.553,18.71296821]
[1773180291645,17.54158793,85.599,85.511,17.60747311]
[1773180292443,17.54158793,85.599,85.543,17.60747311]
[1773180293447,17.54158793,85.599,85.547,10.519]
[1773180295737,17.54158793,85.59,85.543,17.60747311]
[1773180296645,17.54158793,85.589,85.53,17.60747311]
[1773180296847,9.36369709,85.58,85.53,17.60747311]
[1773180297049,17.54158793,85.592,85.53,17.60747311]
[1773180298243,9.36369709,85.6,85.547,17.60747311]
[1773180298444,17.54158793,85.606,85.547,17.60747311]
[1773180298650,17.54158793,85.599,85.547,17.60747311]
[1773180299041,9.36369709,85.6,85.51,9.36369709]
[1773180299042,17.54158793,85.586,85.511,17.60747311]
[1773180299444,17.54158793,85.567,85.513,17.60747311]
[1773180300155,17.54158793,85.567,85.515,17.60747311]
[1773180301346,17.54158793,85.567,85.522,10.522]
[1773180301753,17.54158793,85.581,85.523,17.60747311]
[1773180301949,17.54158793,85.581,85.536,10.521]
[1773180302456,10.516,85.58,85.525,10.522]
[1773180302751,17.54158793,85.579,85.526,17.60747311]
[1773180304550,17.54158793,85.579,85.529,17.60747311]
[1773180305350,17.54158793,85.579,85.53,10.522]
[1773180305550,3.49655316,85.57,85.53,10.522]
[1773180307251,3.49655316,85.56,85.522,10.523]
[1773180307448,3.49655316,85.56,85.521,17.60747311]
[1773180307644,3.49655316,85.57,85.521,17.60747311]
[1773180308443,17.54158793,85.583,85.536,28.12847311]
[1773180308748,3.49655316,85.57,85.537,17.60747311]
[1773180308948,3.49655316,85.57,85.538,10.52]
[1773180309144,3.49655316,85.57,85.537,17.60747311]
[1773180309748,3.49655316,85.57,85.538,10.521]
[1773180310956,17.54158793,85.549,85.484,17.60747311]
[1773180311152,3.49655316,85.52,85.484,17.60747311]
[1773180311352,3.49655316,85.53,85.491,17.60747311]
[1773180311753,3.49655316,85.52,85.476,17.60747311]
[1773180312149,3.49655316,85.52,85.485,10.527]
[1773180312346,3.49655316,85.52,85.485,28.13447311]
[1773180313958,3.49655316,85.51,85.477,10.528]
[1773180315154,3.49655316,85.51,85.482,10.528]
[1773180315646,3.49655316,85.5,85.451,17.60747311]
[1773180316460,3.49655316,85.49,85.458,28.13747311]
[1773180316861,3.49655316,85.5,85.458,28.13747311]
[1773180317054,3.49655316,85.49,85.458,28.13747311]
[1773180317454,3.49655316,85.49,85.449,10.532]
[1773180317655,3.49655316,85.48,85.447,17.60747311]
[1773180318660,3.49655316,85.47,85.421,17.60747311]
[1773180319060,3.49655316,85.48,85.421,17.60747311]
[1773180319258,3.49655316,85.48,85.431,17.60747311]
[1773180319761,3.49655316,85.49,85.444,18.78827296]
[1773180319964,20.78409939,85.49,85.444,18.78827296]
[1773180320363,20.78409939,85.48,85.428,18.78827296]
[1773180320767,3.49655316,85.49,85.441,18.78827296]
[1773180321864,3.49655316,85.48,85.446,29.32027296]
[1773180322259,3.49655316,85.49,85.446,29.32027296]
[1773180322460,17.28754623,85.495,85.446,18.78827296]
[1773180322663,3.49655316,85.49,85.446,18.78827296]
[1773180322963,3.49655316,85.49,85.43,3.49655316]
[1773180322964,3.49655316,85.47,85.436,18.78827296]
[1773180323658,3.49655316,85.47,85.42,3.49655316]
[1773180323659,17.28754623,85.499,85.441,18.78827296]
[1773180323858,3.49655316,85.49,85.441,18.78827296]
[1773180326171,3.49655316,85.49,85.444,18.78827296]
[1773180327367,3.49655316,85.49,85.445,29.32027296]
[1773180327558,3.49655316,85.49,85.446,18.78827296]
[1773180328565,3.49655316,85.49,85.447,10.532]
[1773180328771,3.49655316,85.5,85.451,18.78827296]
[1773180330959,31.30909939,85.5,85.445,10.532]
[1773180331166,3.49655316,85.47,85.431,18.78827296]
[1773180331565,17.28754623,85.48,85.431,18.78827296]
[1773180332271,17.28754623,85.495,85.445,18.78827296]
[1773180332473,17.28754623,85.495,85.42,9.38717455]
[1773180332664,17.28754623,85.495,85.421,18.78827296]
[1773180333076,31.77204794,85.538,85.403,2.03629044]
[1773180333077,17.28754623,85.545,85.471,7.66464138]
[1773180333666,17.28754623,85.545,85.451,7.69007426]
[1773180333871,17.28754623,85.529,85.451,7.69007426]
[1773180335466,17.28754623,85.529,85.465,10.53]
[1773180336568,17.28754623,85.509,85.454,10.531]
[1773180340368,17.28754623,85.509,85.444,10.532]
[1773180340574,17.28754623,85.489,85.411,7.47081434]
[1773180341471,17.28754623,85.489,85.433,10.533]
[1773180342868,17.28754623,85.489,85.441,10.533]
[1773180345276,17.28754623,85.489,85.449,10.531]
[1773180348581,16.93172355,85.479,85.441,10.533]
[1773180349177,16.93172355,85.477,85.431,10.534]
[1773180349976,16.93172355,85.477,85.439,10.533]
[1773180350180,16.93172355,85.477,85.418,4.19516012]
[1773180351384,16.93172355,85.477,85.443,10.532]
[1773180353679,16.51494035,85.469,85.436,10.533]
[1773180354380,16.51494035,85.469,85.443,10.532]
[1773180358786,16.51494035,85.469,85.418,4.19516012]
[1773180359484,16.51494035,85.469,85.445,10.532]
[1773180360488,16.51494035,85.493,85.445,0.4343714]
[1773180360877,16.51494035,85.507,85.445,0.4343714]
[1773180361188,16.51494035,85.529,85.445,0.4343714]
[1773180361386,16.51494035,85.527,85.47,0.19074012]
[1773180361590,16.51494035,85.526,85.47,0.19074012]
[1773180362383,16.51494035,85.526,85.492,10.526]
[1773180366584,16.51494035,85.526,85.484,10.527]
[1773180366785,16.51494035,85.526,85.47,0.19074012]
[1773180368392,16.51494035,85.526,85.49,10.526]
[1773180368888,16.51494035,85.526,85.452,21.063]
[1773180369285,16.51494035,85.507,85.401,21.60020018]
[1773180369488,16.51494035,85.489,85.4,9.38854113]
[1773180369688,16.51494035,85.489,85.412,21.073]
[1773180370687,16.51494035,85.488,85.412,21.073]
[1773180371095,16.51494035,85.488,85.434,10.533]
[1773180373097,16.51494035,85.488,85.4,9.38854113]
[1773180375084,16.51494035,85.488,85.406,21.074]
[1773180375686,16.51494035,85.488,85.45,10.531]
[1773180376889,16.51494035,85.488,85.4,9.38854113]
[1773180377197,16.51494035,85.488,85.42,9.38854113]
[1773180378493,16.51494035,85.488,85.463,10.53]
[1773180379095,16.51494035,85.488,85.466,10.529]
[1773180381702,16.51494035,85.488,85.43,21.068]
[1773180383395,16.51494035,85.488,85.46,10.53]
[1773180384299,16.51494035,85.488,85.466,10.529]
[1773180385797,3.50307441,85.49,85.44,3.50307441]
[1773180386004,14.84190122,85.516,85.46,3.50307441]
[1773180387704,14.84190122,85.516,85.44,9.37739393]
[1773180388401,14.84190122,85.516,85.454,5.51337114]
[1773180390496,14.84190122,85.516,85.485,10.527]
[1773180392401,14.84190122,85.516,85.454,5.51337114]
[1773180393403,14.84190122,85.516,85.485,10.527]
[1773180395908,14.84190122,85.516,85.466,4.70237083]
[1773180396608,14.84190122,85.516,85.482,10.527]
[1773180397014,14.84190122,85.516,85.466,4.70237083]
[1773180398415,14.84190122,85.516,85.488,10.527]
[1773180403410,14.84190122,85.516,85.477,4.85798011]
[1773180403716,12.66486241,85.537,85.477,4.85798011]
[1773180404313,12.66486241,85.537,85.468,21.059]
[1773180404314,12.66486241,85.537,85.506,10.524]
[1773180405821,12.66486241,85.537,85.511,10.524]
[1773180408521,12.66486241,85.537,85.519,10.523]
[1773180408727,11.41037653,85.549,85.519,10.523]
[1773180409828,11.41037653,85.549,85.5,3.49887679]
[1773180409829,11.41037653,85.549,85.501,5.02672676]
[1773180410426,11.41037653,85.549,85.521,10.523]
[1773180412629,11.41037653,85.549,85.527,10.522]
[1773180413730,11.41037653,85.549,85.464,21.60020018]
[1773180413731,11.51466423,85.563,85.521,5.08532726]
[1773180415424,11.51466423,85.575,85.53,3.4982192]
[1773180415625,3.4982192,85.56,85.52,3.4982192]
[1773180415829,3.4982192,85.56,85.517,5.12978533]
[1773180416230,11.51466423,85.569,85.521,5.12978533]
[1773180416630,11.51466423,85.569,85.549,10.519]
[1773180419334,11.51466423,85.581,85.556,10.518]
[1773180419730,3.4982192,85.58,85.556,10.518]
[1773180420332,3.4982192,85.58,85.563,10.517]
[1773180420529,3.4982192,85.59,85.563,10.517]
[1773180422135,3.4982192,85.59,85.54,3.4982192]
[1773180422136,11.51466423,85.569,85.511,5.10659262]
[1773180422334,3.4982192,85.56,85.511,5.10659262]
[1773180422735,11.51466423,85.569,85.522,5.12421591]
[1773180424445,11.51466423,85.569,85.539,10.52]
[1773180427140,11.51466423,85.569,85.522,5.12421591]
[1773180428348,3.4982192,85.57,85.534,5.33333846]
[1773180428549,11.51466423,85.58,85.534,5.33333846]
[1773180428550,15.01288343,85.58,85.534,5.33333846]
[1773180429046,3.4982192,85.57,85.544,10.52]
[1773180430551,11.51466423,85.579,85.544,10.52]
[1773180430752,3.4982192,85.57,85.544,10.52]
[1773180431448,3.4982192,85.57,85.52,3.4982192]
[1773180431449,11.51466423,85.569,85.536,10.521]
[1773180432045,3.4982192,85.56,85.536,10.521]
[1773180435357,11.51466423,85.569,85.536,10.521]
[1773180440766,11.51466423,85.569,85.521,5.36431286]
[1773180440961,14.74659426,85.56,85.521,5.36431286]
[1773180441358,3.4982192,85.55,85.528,10.522]
[1773180442468,3.4982192,85.55,85.521,10.523]
[1773180443861,11.24837506,85.549,85.514,10.524]
[1773180444865,11.24837506,85.549,85.521,10.523]
[1773180445372,11.24837506,85.549,85.509,6.04652473]
[1773180445870,3.4982192,85.55,85.524,10.522]
[1773180450275,3.4982192,85.54,85.509,6.04652473]
[1773180450576,14.74659426,85.54,85.498,6.15664107]
[1773180450875,14.74659426,85.54,85.512,10.524]
[1773180451768,11.24837506,85.54,85.518,10.523]
[1773180451971,3.4982192,85.54,85.498,6.15664107]
[1773180452476,3.4982192,85.54,85.521,10.523]
[1773180454170,14.74659426,85.54,85.496,6.28401569]
[1773180454478,3.4982192,85.53,85.496,6.28401569]
[1773180455473,3.4982192,85.53,85.503,10.525]
[1773180457874,3.4982192,85.52,85.484,6.32571336]
[1773180458374,3.4982192,85.53,85.505,10.525]
[1773180458574,14.74659426,85.54,85.502,6.32605504]
[1773180458974,3.4982192,85.55,85.502,6.32605504]
[1773180459479,11.24837506,85.529,85.498,10.525]
[1773180459773,11.24837506,85.56,85.491,6.3488297]
[1773180459977,11.24837506,85.546,85.501,6.3488297]
[1773180460170,3.4982192,85.53,85.48,3.4982192]
[1773180460472,3.4982192,85.54,85.491,6.3437155]
[1773180461071,3.4982192,85.54,85.447,28.82986778]
[1773180461072,0.1692666,85.496,85.402,12.40262723]
[1773180461269,3.4982192,85.44,85.402,12.40262723]
[1773180461472,3.4982192,85.43,85.402,12.40262723]
[1773180462878,3.4982192,85.41,85.384,12.38607796]
[1773180463280,3.4982192,85.44,85.384,12.38607796]
[1773180463476,3.4982192,85.43,85.384,12.38607796]
[1773180463681,3.4982192,85.42,85.384,12.38607796]
[1773180463878,0.23449307,85.389,85.334,12.38620866]
[1773180464080,3.4982192,85.35,85.317,11.99196602]
[1773180464278,3.4982192,85.34,85.317,11.99196602]
[1773180464478,3.4982192,85.35,85.317,11.99196602]
[1773180464982,3.4982192,85.34,85.301,11.99196602]
[1773180465278,3.4982192,85.32,85.282,11.99196602]
[1773180465478,3.4982192,85.3,85.264,11.99196602]
[1773180465784,3.96460402,85.319,85.264,11.99196602]
[1773180466379,3.96460402,85.319,85.239,11.99196602]
[1773180467378,3.96460402,85.319,85.243,11.70647019]
[1773180468592,3.96460402,85.319,85.248,11.70647019]
[1773180468892,4.69303493,85.337,85.248,11.70647019]
[1773180469486,10.545,85.343,85.248,11.70647019]
[1773180469487,9.4260873,85.32,85.248,11.70647019]
[1773180469890,4.93291076,85.322,85.263,12.73872973]
[1773180470487,4.93291076,85.322,85.243,2.04012839]
[1773180470789,4.86991198,85.317,85.244,12.73872973]
[1773180472796,44.4760873,85.34,85.244,12.73872973]
[1773180472992,5.15051995,85.339,85.26,12.73872973]
[1773180474397,5.15051995,85.339,85.264,12.73872973]
[1773180477397,5.15051995,85.339,85.278,12.73872973]
[1773180478697,5.15051995,85.339,85.283,12.73872973]
[1773180480497,6.04680824,85.329,85.283,12.73872973]
[1773180480691,6.04680824,85.329,85.269,10.554]
[1773180481092,6.04680824,85.329,85.27,12.73872973]
[1773180481291,9.42182918,85.33,85.27,12.73872973]
[1773180481292,6.15598542,85.327,85.27,12.73872973]
[1773180482502,6.14575552,85.325,85.27,12.73872973]
[1773180482892,6.25375205,85.34,85.27,12.73872973]
[1773180483497,6.25375205,85.34,85.282,12.73872973]
[1773180483998,6.25375205,85.34,85.283,10.552]
[1773180484302,9.42182918,85.35,85.219,2.04051118]
[1773180484303,9.42182918,85.35,85.284,12.73872973]
[1773180485002,9.42182918,85.35,85.291,12.73872973]
[1773180486099,6.35871334,85.356,85.299,12.73872973]
[1773180486295,6.82853385,85.369,85.299,12.73872973]
[1773180487405,10.542,85.364,85.301,10.55]
[1773180487604,10.542,85.364,85.302,12.73872973]
[1773180487901,7.03284704,85.377,85.316,12.73872973]
[1773180488700,7.06347231,85.388,85.322,12.73872973]
[1773180490003,10.538,85.397,85.337,12.73872973]
[1773180491506,10.538,85.397,85.342,12.73872973]
[1773180493110,7.16206621,85.404,85.345,12.73872973]
[1773180493609,7.37774241,85.399,85.348,10.544]
[1773180493809,7.37774241,85.399,85.349,12.73872973]
[1773180495305,7.37774241,85.399,85.351,10.544]
[1773180495512,7.37774241,85.399,85.311,12.73872973]
[1773180495713,7.12656683,85.389,85.311,12.73872973]
[1773180495912,17.66756683,85.37,85.311,12.73872973]
[1773180496111,7.12656683,85.369,85.311,12.73872973]
[1773180496912,7.12924297,85.381,85.311,12.73872973]
[1773180498417,10.541,85.372,85.322,10.547]
[1773180498717,35.05,85.425,85.323,12.73872973]
[1773180498718,6.85998828,85.399,85.323,12.73872973]
[1773180499311,10.539,85.386,85.33,10.546]
[1773180499513,10.539,85.386,85.331,13.27758219]
[1773180500414,10.539,85.386,85.332,10.546]
[1773180502914,10.539,85.386,85.331,13.27758219]
[1773180502915,10.54,85.378,85.331,13.27758219]
[1773180503115,7.00577243,85.383,85.331,13.27758219]
[1773180503914,7.00577243,85.383,85.338,10.545]
[1773180505914,6.89789337,85.379,85.331,13.27758219]
[1773180506119,6.89789337,85.359,85.271,13.27758219]
[1773180506720,6.89789337,85.359,85.295,13.27758219]
[1773180507117,9.42182918,85.38,85.249,21.113]
[1773180507118,6.83461383,85.339,85.261,13.27758219]
[1773180507315,9.42182918,85.38,85.261,13.27758219]
[1773180507316,9.42182918,85.32,85.261,13.27758219]
[1773180508317,10.548,85.316,85.267,10.554]
[1773180508622,10.548,85.316,85.268,13.27758219]
[1773180508820,7.2277823,85.315,85.268,13.27758219]
[1773180509421,7.2277823,85.315,85.221,13.27758219]
[1773180509719,10.549,85.311,85.256,13.27758219]
[1773180511422,10.549,85.311,85.26,10.555]
[1773180511823,9.42182918,85.3,85.26,13.27758219]
[1773180512026,9.42182918,85.32,85.26,13.27758219]
[1773180512915,9.42182918,85.32,85.23,30.53982918]
[1773180512916,9.42182918,85.32,85.269,13.27758219]
[1773180513117,7.00954706,85.33,85.269,13.27758219]
[1773180513320,10.547,85.321,85.271,10.553]
[1773180514125,10.547,85.321,85.274,10.553]
[1773180514324,10.547,85.328,85.275,13.27758219]
[1773180514921,7.10050045,85.32,85.231,13.27758219]
[1773180515320,10.548,85.318,85.273,10.553]
[1773180515929,7.10050045,85.32,85.277,10.553]
[1773180516427,7.10050045,85.32,85.274,13.27758219]
[1773180517324,10.548,85.319,85.274,13.27758219]
[1773180519230,10.548,85.319,85.275,10.553]
[1773180519424,7.01486534,85.333,85.276,13.27758219]
[1773180520328,10.547,85.323,85.279,10.552]
[1773180524734,10.548,85.314,85.276,13.27758219]
[1773180524937,7.01486534,85.333,85.276,13.27758219]
[1773180526438,10.546,85.33,85.281,10.552]
[1773180526641,10.546,85.33,85.282,13.27758219]
[1773180526831,7.01486534,85.333,85.282,13.27758219]
[1773180528437,10.547,85.324,85.282,13.27758219]
[1773180528837,10.547,85.324,85.283,10.552]
[1773180529034,10.547,85.324,85.283,23.40003189]
[1773180529428,10.547,85.324,85.284,12.81917434]
[1773180530437,6.20472934,85.366,85.292,12.81917434]
[1773180530740,10.543,85.353,85.311,10.549]
[1773180531040,10.543,85.353,85.312,12.81917434]
[1773180531539,3.51502464,85.35,85.312,12.81917434]
[1773180532038,3.51502464,85.34,85.312,12.81917434]
[1773180532636,3.51502464,85.34,85.304,10.549]
[1773180533536,10.545,85.341,85.304,10.549]
[1773180534229,6.16916569,85.353,85.304,10.549]
[1773180534230,10.544,85.348,85.304,10.549]
[1773180536839,10.544,85.348,85.304,23.36817434]
[1773180537437,10.545,85.341,85.304,12.81917434]
[1773180538640,6.16916569,85.353,85.315,10.548]
[1773180538946,10.543,85.357,85.316,12.81917434]
[1773180540041,10.544,85.351,85.316,12.81917434]
[1773180540237,6.10804523,85.367,85.317,10.548]
[1773180540444,35.18,85.378,85.316,12.81917434]
[1773180540840,10.543,85.358,85.316,12.81917434]
[1773180542440,10.543,85.358,85.317,12.81917434]
[1773180542747,10.544,85.352,85.317,12.81917434]
[1773180544348,10.543,85.359,85.318,10.548]
[1773180544748,5.98715032,85.364,85.318,12.81917434]
[1773180545844,10.543,85.355,85.318,12.81917434]
[1773180549645,10.543,85.355,85.319,10.548]
[1773180549850,10.543,85.355,85.32,12.81917434]
[1773180550948,10.544,85.349,85.303,12.81917434]
[1773180552359,10.544,85.349,85.309,12.81917434]
[1773180553153,10.544,85.349,85.31,10.549]
[1773180553353,10.544,85.349,85.311,12.81917434]
[1773180558855,10.544,85.349,85.313,10.548]
[1773180559055,10.544,85.349,85.314,12.81917434]
[1773180563364,10.544,85.349,85.315,10.548]
[1773180563666,3.51490229,85.36,85.316,11.86587231]
[1773180563667,10.543,85.355,85.316,11.86587231]
[1773180564062,10.543,85.355,85.319,11.86587231]
[1773180564664,10.543,85.355,85.271,21.0773919]
[1773180564665,5.68989922,85.379,85.331,11.86587231]
[1773180565161,10.541,85.37,85.332,11.86587231]
[1773180566469,10.541,85.37,85.334,11.86587231]
[1773180567566,10.54,85.377,85.338,11.86587231]
[1773180567762,3.51490229,85.39,85.341,11.86587231]
[1773180568472,3.51490229,85.4,85.351,11.86587231]
[1773180568671,14.13469416,85.405,85.351,11.86587231]
[1773180568864,8.69572601,85.404,85.351,11.86587231]
[1773180569060,8.69572601,85.403,85.353,10.543]
[1773180569266,15.95757853,85.404,85.361,11.86587231]
[1773180569668,10.537,85.404,85.361,11.86587231]
[1773180570066,5.40232315,85.405,85.361,11.86587231]
[1773180571364,15.93932315,85.405,85.361,11.86587231]
[1773180571867,5.37452582,85.384,85.334,11.86587231]
[1773180572172,5.37452582,85.371,85.334,11.86587231]
[1773180572366,10.542,85.363,85.334,11.86587231]
[1773180572868,3.51490229,85.39,85.334,11.86587231]
[1773180573067,8.80303277,85.39,85.334,11.86587231]
[1773180573273,5.28813048,85.389,85.334,11.86587231]
[1773180574167,10.541,85.372,85.334,11.86587231]
[1773180574868,10.542,85.369,85.334,11.86587231]
[1773180575274,3.51490229,85.37,85.334,11.86587231]
[1773180575672,5.27069806,85.377,85.334,11.86587231]
[1773180576466,10.541,85.376,85.334,11.86587231]
[1773180578073,10.542,85.369,85.334,11.86587231]
[1773180578670,3.51490229,85.36,85.321,11.86587231]
[1773180578870,3.51490229,85.35,85.321,11.86587231]
[1773180580574,10.543,85.355,85.321,11.86587231]
[1773180581368,10.543,85.355,85.311,11.86587231]
[1773180582573,3.51490229,85.35,85.311,11.86587231]
[1773180584572,10.544,85.348,85.311,11.86587231]
[1773180585475,3.51490229,85.35,85.311,11.86587231]
[1773180586078,10.544,85.349,85.311,11.86587231]
[1773180587480,3.51490229,85.34,85.299,12.6763477]
[1773180588171,5.14829819,85.348,85.299,12.6763477]
[1773180589878,3.51490229,85.34,85.299,12.6763477]
[1773180590877,4.94764113,85.339,85.299,12.6763477]
[1773180591084,3.51490229,85.33,85.299,12.6763477]
[1773180591380,15.49264113,85.339,85.299,12.6763477]
[1773180593378,5.02910393,85.359,85.301,11.68831191]
[1773180593778,10.543,85.358,85.31,3.51490229]
[1773180593988,5.01547771,85.374,85.321,11.68831191]
[1773180595380,10.542,85.365,85.325,11.68831191]
[1773180596185,10.543,85.359,85.325,11.68831191]
[1773180596486,3.51297224,85.37,85.325,11.68831191]
[1773180596687,3.51297224,85.36,85.325,11.68831191]
[1773180596887,10.542,85.365,85.325,11.68831191]
[1773180597682,10.541,85.372,85.327,11.68831191]
[1773180597884,10.541,85.372,85.331,11.68831191]
[1773180598086,3.51297224,85.37,85.331,11.68831191]
[1773180599583,10.542,85.366,85.331,11.68831191]
[1773180599788,3.51297224,85.37,85.331,11.68831191]
[1773180600679,3.51297224,85.36,85.331,11.68831191]
[1773180601078,10.542,85.365,85.331,11.68831191]
[1773180601882,10.541,85.372,85.331,11.68831191]
[1773180603080,8.6347764,85.34,85.271,11.68831191]
[1773180603282,3.51297224,85.33,85.281,11.68831191]
[1773180603692,3.51297224,85.33,85.291,11.68831191]
[1773180603891,10.545,85.338,85.291,11.68831191]
[1773180604384,10.545,85.338,85.28,3.51297224]
[1773180604385,10.545,85.338,85.297,11.68831191]
[1773180604590,3.51297224,85.36,85.311,11.68831191]
[1773180605593,10.543,85.359,85.316,11.68831191]
[1773180606093,10.543,85.359,85.241,35.18]
[1773180606094,12.30970296,85.324,85.232,198.01918238]
[1773180606290,3.51297224,85.3,85.24,3.51297224]
[1773180606488,3.51297224,85.29,85.24,3.51297224]
[1773180606688,3.51297224,85.29,85.243,10.557]
[1773180608087,3.51297224,85.3,85.252,11.68831191]
[1773180608999,3.51297224,85.3,85.257,11.68831191]
[1773180609199,3.51297224,85.31,85.261,11.68831191]
[1773180609501,3.51297224,85.29,85.261,11.68831191]
[1773180610098,3.51297224,85.27,85.241,11.68831191]
[1773180610599,3.51297224,85.26,85.241,11.68831191]
[1773180610993,3.51297224,85.27,85.241,11.68831191]
[1773180611807,3.51297224,85.25,85.221,11.68831191]
[1773180611999,3.51297224,85.25,85.15,293.0]
[1773180612000,3.51297224,85.23,85.206,11.68831191]
[1773180612194,35.18,85.258,85.181,11.68831191]
[1773180612501,3.51297224,85.23,85.181,11.68831191]
[1773180613207,10.555,85.261,85.202,11.68831191]
[1773180613502,3.51297224,85.25,85.202,11.68831191]
[1773180614403,3.51297224,85.25,85.205,11.68831191]
[1773180615708,3.51297224,85.26,85.209,11.68831191]
[1773180615901,3.51297224,85.27,85.211,11.68831191]
[1773180616507,3.51297224,85.27,85.21,3.51297224]
[1773180616508,3.51297224,85.27,85.221,11.68831191]
[1773180618105,3.51297224,85.26,85.221,11.68831191]
[1773180618298,3.51297224,85.27,85.221,11.68831191]
[1773180619101,3.51297224,85.27,85.169,2.04167241]
[1773180619102,35.18,85.273,85.104,164.495]
[1773180619403,3.51297224,85.22,85.106,21.148]
[1773180619610,3.51297224,85.22,85.16,3.51297224]
[1773180619903,10.559,85.229,85.17,3.51297224]
[1773180620102,10.559,85.229,85.106,21.148]
[1773180620103,10.559,85.229,85.16,3.51297224]
[1773180620307,10.559,85.229,85.17,3.51297224]
[1773180620509,10.559,85.229,85.18,3.51297224]
[1773180620701,10.559,85.229,85.17,3.51297224]
[1773180621007,10.559,85.229,85.171,18.89412423]
[1773180621211,10.555,85.256,85.18,18.89412423]
[1773180621406,3.51297224,85.25,85.19,22.40692471]
[1773180621606,9.43761552,85.27,85.19,18.89395247]
[1773180622208,9.43761552,85.29,85.192,18.89395247]